bitfinex/quotes_ETHUSD_20260310
["timestamp","ask_amount","ask_price","bid_price","bid_amount"]
[1773122823846,0.002,2044.1,2043.8,0.28345214]
[1773122824651,0.002,2044.1,2043.8,1.50663181]
[1773122825147,0.45437337,2044.1,2043.7,1.22434906]
[1773122825849,0.45237337,2043.9,2043.5,0.0011]
[1773122826544,1.22321166,2043.8,2043.5,0.0011]
[1773122826738,0.45237337,2043.7,2043.5,0.0011]
[1773122832347,0.45237337,2043.6,2043.3,0.0011]
[1773122833240,0.45237337,2043.6,2043.5,0.0011]
[1773122833949,0.45237337,2043.6,2043.3,0.0011]
[1773122834160,0.45237337,2043.3,2043.1,0.0011]
[1773122834457,9.84854123,2043.6,2042.8,0.0011]
[1773122834458,0.45237337,2043.1,2042.8,0.0011]
[1773122837169,0.45237337,2043.1,2042.8,0.28564252]
[1773122838332,0.45237337,2043.1,2042.8,1.50943081]
[1773122838968,0.45237337,2043.1,2042.8,1.22488829]
[1773122839263,0.45237337,2043.3,2042.9,0.28454126]
[1773122839445,0.45237337,2043.6,2042.9,0.28454126]
[1773122840432,0.45237337,2043.6,2043.1,0.28454065]
[1773122842069,0.45237337,2043.6,2043.0,1.50823009]
[1773122843568,0.45237337,2043.6,2042.8,0.28563884]
[1773122844464,0.45237337,2043.5,2042.8,0.28563884]
[1773122845543,0.45237337,2043.5,2042.8,0.0011]
[1773122845544,1.22345111,2043.4,2042.8,0.0011]
[1773122845748,0.45237337,2043.3,2042.8,0.0011]
[1773122849371,0.001,2043.4,2042.8,0.28673542]
[1773122849671,0.45337337,2043.4,2042.8,0.28673542]
[1773122850173,0.45337337,2043.4,2042.8,0.0011]
[1773122850174,0.45237337,2043.3,2042.8,0.0011]
[1773122850863,0.45237337,2043.3,2042.8,0.28673487]
[1773122851582,0.45237337,2043.3,2042.9,1.50938488]
[1773122851751,0.45337337,2043.4,2043.0,0.28563433]
[1773122855373,0.45337337,2043.4,2043.1,1.22363075]
[1773122855568,0.45337337,2043.4,2043.0,1.22364873]
[1773122855966,0.45552524,2043.3,2042.9,1.22374879]
[1773122856163,0.45552524,2043.3,2042.9,1.50937999]
[1773122857876,0.45552524,2043.3,2042.9,1.22374879]
[1773122858880,0.45552524,2043.3,2043.2,0.0011]
[1773122862882,0.45552524,2043.3,2042.8,5.18176848]
[1773122862883,0.45552524,2043.3,2042.8,1.51049616]
[1773122863255,0.45552524,2043.3,2042.9,0.28562782]
[1773122864193,0.45552524,2043.2,2042.8,0.0011]
[1773122864502,0.45552524,2043.1,2042.8,1.22490589]
[1773122864707,0.45552524,2043.1,2042.8,0.0011]
[1773122864989,0.45552524,2043.1,2042.7,0.0011]
[1773122865289,0.45552524,2042.9,2042.5,0.0011]
[1773122865602,0.45552524,2042.9,2042.5,1.51181457]
[1773122865958,0.45552524,2042.9,2042.5,1.22508766]
[1773122866777,0.45552524,2042.9,2042.5,1.51181412]
[1773122868384,0.45552524,2042.9,2042.5,1.22508766]
[1773122869988,0.45552524,2042.9,2042.6,0.28672471]
[1773122870167,0.45552524,2043.1,2042.6,0.28672471]
[1773122871666,0.45552524,2043.1,2042.7,0.0011]
[1773122871894,0.4782333,2043.0,2042.7,0.0011]
[1773122872882,0.4782333,2043.2,2042.7,0.28782344]
[1773122874692,0.4782333,2043.2,2042.8,1.51053308]
[1773122874997,0.4782333,2043.1,2042.7,1.22492304]
[1773122875296,0.4782333,2043.1,2042.7,1.51164527]
[1773122879705,0.4782333,2043.1,2042.7,1.22492304]
[1773122880516,0.4782333,2043.3,2042.8,0.28672029]
[1773122882317,0.001,2043.4,2042.9,1.22375055]
[1773122882492,0.001,2043.4,2043.0,0.28671954]
[1773122885413,0.001,2043.4,2043.2,0.2867181]
[1773122885792,0.48973146,2043.4,2043.0,1.51036493]
[1773122886185,0.48973146,2043.4,2042.9,0.28671775]
[1773122886387,0.48973146,2043.4,2043.0,0.28671775]
[1773122886900,0.48973146,2043.4,2042.9,1.22375055]
[1773122887099,0.48973146,2043.4,2042.9,1.51046796]
[1773122887595,0.48973146,2043.4,2042.9,1.22375055]
[1773122887808,0.48973146,2043.4,2043.0,0.28671741]
[1773122889723,0.001,2043.4,2043.1,0.28671673]
[1773122890888,0.48973146,2043.4,2043.1,0.28671673]
[1773122892090,0.48973146,2043.4,2043.0,1.51037452]
[1773122893398,0.48973146,2043.4,2043.1,0.28671542]
[1773122896019,0.48973146,2043.4,2043.1,1.5103356]
[1773122896694,0.001,2043.2,2043.1,0.28671542]
[1773122899314,0.001,2043.2,2043.1,1.51034617]
[1773122903817,0.001,2043.2,2043.1,0.28671542]
[1773122904596,0.001,2043.2,2043.1,1.51034617]
[1773122905327,0.48973146,2043.2,2042.8,0.0011]
[1773122906426,0.48873146,2042.9,2042.4,1.22402719]
[1773122906626,0.48873146,2042.9,2042.5,2.44870325]
[1773122907116,0.96032489,2043.2,2042.5,2.44870325]
[1773122907117,0.48973146,2043.2,2042.7,0.28781128]
[1773122907326,0.48873146,2043.1,2042.7,1.51164421]
[1773122909131,0.48873146,2043.1,2042.8,0.0011]
[1773122909630,0.48973146,2043.0,2042.8,0.0011]
[1773122909800,0.48973146,2043.0,2042.8,1.22473075]
[1773122910410,0.001,2043.0,2042.9,1.51144122]
[1773122911538,0.001,2043.0,2042.9,2.4473813]
[1773122914141,0.46871825,2043.0,2042.9,1.22363075]
[1773122914444,0.001,2043.0,2042.9,2.4473813]
[1773122914813,0.001,2043.0,2042.9,1.22363075]
[1773122916417,0.46871825,2043.0,2042.8,0.0011]
[1773122916741,0.46871825,2043.0,2042.8,1.22473075]
[1773122918438,0.46871825,2043.0,2042.8,0.0011]
[1773122920252,0.46871825,2043.0,2042.8,1.22473075]
[1773122920746,0.46871825,2043.0,2042.5,0.28890775]
[1773122920747,0.46771825,2042.9,2042.5,0.28890775]
[1773122920924,0.46771825,2042.9,2042.5,1.51286725]
[1773122922246,0.001,2042.8,2042.5,1.51286725]
[1773122922670,0.46871825,2042.8,2042.7,0.0011]
[1773122922948,0.46871825,2042.8,2042.5,0.0011]
[1773122925232,0.46771825,2042.6,2042.3,0.0011]
[1773122925426,0.46771825,2042.6,2042.3,1.22520167]
[1773122926454,0.46771825,2042.6,2042.3,0.0011]
[1773122928353,0.46771825,2042.6,2042.3,1.22521007]
[1773122929557,0.46771825,2042.6,2042.3,1.69681521]
[1773122931445,0.46771825,2042.6,2042.3,1.22521007]
[1773122935952,0.46771825,2042.6,2042.5,0.0011]
[1773122940645,0.49498443,2042.5,2042.3,0.0011]
[1773122940848,0.49498443,2042.5,2042.2,0.0011]
[1773122941369,0.49598443,2042.8,2042.3,0.47160514]
[1773122941670,0.49498443,2042.7,2042.3,0.47160514]
[1773122942167,0.49498443,2042.6,2042.2,1.22522279]
[1773122945980,0.49498443,2042.6,2042.2,0.0011]
[1773122948058,0.46784966,2042.5,2042.2,0.0011]
[1773122948270,0.46884966,2042.4,2042.2,0.0011]
[1773122948675,0.46784966,2042.3,2042.0,1.22537888]
[1773122949388,0.46784966,2042.3,2042.0,1.69590091]
[1773122949895,0.001,2042.4,2042.1,0.47052203]
[1773122950683,0.001,2042.4,2042.2,1.22417001]
[1773122951390,0.001,2042.4,2042.2,1.69469204]
[1773122951965,0.001,2042.4,2042.1,1.69470606]
[1773122952362,0.46884966,2042.4,2042.1,1.69470606]
[1773122956392,0.001,2042.4,2042.1,1.69470606]
[1773122957998,0.46884966,2042.4,2042.1,1.22418403]
[1773122960201,0.46884966,2042.4,2042.3,0.0011]
[1773122961483,0.001,2042.4,2042.3,0.0011]
[1773122961973,0.46884966,2042.4,2042.3,0.0011]
[1773122963103,0.001,2042.4,2042.3,0.0011]
[1773122968750,0.001,2042.4,2042.3,0.47162203]
[1773122976845,0.001,2042.4,2042.3,0.0011]
[1773122985851,0.46051871,2042.4,2042.3,0.0011]
[1773122987071,0.45951871,2042.3,2042.0,0.0011]
[1773122987242,0.45951871,2042.1,2041.9,0.0011]
[1773122987444,0.45951871,2042.3,2041.9,1.22544957]
[1773122987634,0.45951871,2042.3,2042.0,0.45857664]
[1773122988367,0.45951871,2042.3,2041.9,1.68402621]
[1773122988964,0.45951871,2042.3,2042.0,0.45857664]
[1773122990283,0.001,2042.4,2042.0,0.45857664]
[1773122990566,0.001,2043.0,2042.8,0.45857664]
[1773122991173,0.001,2043.0,2042.7,1.2238303]
[1773122991174,0.46251871,2043.0,2042.7,1.68240694]
[1773122991345,0.46251871,2043.0,2042.7,1.2238303]
[1773122991544,0.46251871,2043.0,2042.7,1.68240694]
[1773122992167,0.46151871,2043.0,2042.7,1.68240694]
[1773122992870,0.002,2043.0,2042.8,0.45857664]
[1773122993041,0.003,2043.0,2042.8,0.45857664]
[1773122993238,0.001,2043.2,2042.8,0.45857664]
[1773122993437,0.001,2043.1,2042.8,0.45857664]
[1773122993738,0.46151871,2043.1,2042.8,0.45857664]
[1773122994571,0.001,2043.2,2042.8,0.45857664]
[1773122994772,0.46051871,2043.4,2043.0,0.45857664]
[1773122994773,0.001,2043.4,2043.0,0.45857664]
[1773122994969,0.001,2043.4,2043.1,1.68220739]
[1773122995138,0.46051871,2043.4,2043.1,1.68220739]
[1773122997544,0.001,2043.4,2043.1,1.68220739]
[1773122999453,0.001,2043.2,2043.1,1.68220739]
[1773123002658,0.001,2043.4,2043.2,0.48899917]
[1773123002958,0.47289648,2043.6,2043.2,0.48899917]
[1773123003191,0.001,2043.7,2043.2,0.48899917]
[1773123003347,0.001,2043.7,2043.1,2.18335454]
[1773123003348,0.47289648,2044.0,2043.6,0.48899908]
[1773123004367,0.45667823,2043.9,2043.1,1.22363075]
[1773123004689,0.45667823,2043.7,2043.1,1.71262966]
[1773123005752,0.45667823,2043.6,2043.1,1.71262966]
[1773123005948,0.45667823,2043.6,2043.1,1.22363075]
[1773123006479,0.45667823,2043.6,2042.9,2.03999875]
[1773123006650,0.45667823,2043.6,2042.9,3.26372296]
[1773123006849,0.45667823,2043.5,2042.9,3.26372296]
[1773123007286,0.45667823,2043.4,2042.7,0.48899867]
[1773123007525,0.45667823,2043.1,2042.6,1.71292895]
[1773123007983,0.45667823,2043.1,2042.6,0.48899867]
[1773123010392,0.45667823,2043.0,2042.6,1.22387739]
[1773123011491,0.45667823,2043.0,2042.8,0.001]
[1773123014588,0.45667823,2042.9,2042.8,0.001]
[1773123015664,0.45667823,2042.9,2042.5,0.001]
[1773123016875,2.18341703,2043.0,2042.5,0.001]
[1773123016876,0.45667823,2042.8,2042.5,0.001]
[1773123020598,0.45667823,2042.8,2042.3,1.22511007]
[1773123020779,0.45667823,2042.8,2042.3,0.001]
[1773123020780,0.45667823,2042.7,2042.3,0.001]
[1773123021316,0.45667823,2042.7,2042.3,1.22510453]
[1773123022679,0.45667823,2042.7,2042.3,0.001]
[1773123024601,0.45667823,2042.7,2042.5,0.0011]
[1773123025100,0.45767823,2042.6,2042.5,0.0011]
[1773123027417,0.45667823,2042.5,2042.3,0.001]
[1773123031595,0.45667823,2042.5,2042.1,0.0011]
[1773123032732,0.45667823,2042.5,2042.1,1.22532995]
[1773123035536,0.45667823,2042.5,2042.1,0.48901662]
[1773123037352,0.45667823,2042.5,2042.0,0.0011]
[1773123037580,0.96072379,2042.6,2041.6,2.12758825]
[1773123037581,0.48392174,2041.9,2041.6,2.12758825]
[1773123037845,0.48392174,2041.9,2041.6,1.22560943]
[1773123038150,0.48392174,2041.9,2041.8,0.0011]
[1773123038858,0.48392174,2042.1,2041.8,0.0011]
[1773123044419,0.48392174,2042.1,2041.8,0.48901662]
[1773123044624,0.48392174,2042.1,2041.8,0.0011]
[1773123047261,0.48392174,2041.9,2041.5,0.48791662]
[1773123048262,0.95972379,2041.8,2040.9,0.48791662]
[1773123048457,0.95972379,2041.4,2040.9,0.48791662]
[1773123048625,0.48392174,2041.3,2040.9,0.48791662]
[1773123049946,0.48392174,2041.3,2041.1,0.0011]
[1773123051932,1.70864337,2041.3,2040.9,0.49219576]
[1773123052536,0.48392174,2041.3,2040.9,0.49219576]
[1773123053838,1.70863277,2041.3,2040.9,0.49219576]
[1773123054156,0.48392174,2041.3,2040.9,0.49219576]
[1773123055344,0.48392174,2041.3,2040.9,1.71714464]
[1773123055550,1.72364327,2041.5,2041.0,0.49109563]
[1773123055746,0.49902887,2041.4,2040.9,0.0011]
[1773123057045,0.49902887,2041.4,2040.9,0.49219554]
[1773123057949,1.22470974,2041.3,2040.9,0.49219554]
[1773123058275,0.49902887,2041.2,2040.9,0.49219554]
[1773123058639,1.22470974,2041.3,2040.6,0.0011]
[1773123058640,0.49902887,2040.9,2040.6,0.0011]
[1773123059065,0.49902887,2040.9,2040.6,1.22620747]
[1773123060534,1.72384449,2041.2,2040.7,0.49109541]
[1773123060738,0.49902887,2041.2,2040.7,0.49109541]
[1773123061436,0.49902887,2041.3,2040.7,0.49109541]
[1773123062070,0.49902887,2041.3,2040.8,0.0011]
[1773123062376,0.49902887,2041.7,2041.1,0.49109532]
[1773123062673,0.49902887,2041.9,2041.2,0.49009532]
[1773123063755,4.89692097,2042.1,2041.4,0.47997898]
[1773123063756,0.49051198,2042.1,2041.4,0.47997898]
[1773123063954,1.99295953,2042.2,2041.6,0.47997898]
[1773123063955,3.70764162,2042.2,2041.6,0.47997898]
[1773123064162,0.49051198,2042.1,2041.6,0.47997898]
[1773123064570,0.49051198,2042.1,2041.6,1.70445557]
[1773123065062,0.49051198,2042.1,2041.1,1.22482974]
[1773123065063,0.49051198,2041.7,2041.1,1.22482974]
[1773123065263,0.49051198,2041.7,2041.2,0.47997898]
[1773123066278,0.49051198,2041.7,2041.1,1.22482974]
[1773123066582,1.22447483,2041.7,2041.2,1.70471678]
[1773123066790,1.71498681,2041.7,2041.2,1.70471678]
[1773123066976,0.49051198,2041.6,2041.2,1.70471678]
[1773123068968,0.49051198,2041.5,2041.0,0.47997898]
[1773123070987,0.49051198,2041.5,2041.1,1.70480872]
[1773123071391,0.49051198,2041.7,2041.2,0.47997898]
[1773123071589,4.89745979,2042.3,2041.2,0.47997898]
[1773123071590,0.49051198,2041.9,2041.2,0.47997898]
[1773123073281,0.49051198,2041.9,2041.4,0.47997898]
[1773123073593,1.71486528,2041.9,2041.4,0.47997898]
[1773123073794,0.49051198,2041.8,2041.4,0.47997898]
[1773123074883,0.49051198,2041.8,2041.4,0.48107898]
[1773123075458,0.49051198,2041.8,2041.4,1.70569078]
[1773123077285,0.49051198,2041.7,2041.4,0.0011]
[1773123078593,0.49051198,2041.5,2041.2,0.48107898]
[1773123078891,0.49051198,2041.5,2041.2,0.0011]
[1773123080078,0.49051198,2041.4,2041.2,0.0011]
[1773123082175,0.49051198,2041.5,2041.2,0.0011]
[1773123082694,0.49051198,2041.5,2040.9,0.01011557]
[1773123084066,0.49051198,2041.5,2041.0,1.23500526]
[1773123084280,0.49494362,2041.4,2041.0,0.01011551]
[1773123085294,0.49494362,2041.4,2040.9,1.22492239]
[1773123085794,0.49494362,2041.4,2041.0,0.01011548]
[1773123085987,0.49494362,2041.5,2041.0,0.01011548]
[1773123086182,0.49494362,2041.5,2041.1,1.22482974]
[1773123086387,0.49494362,2041.5,2041.1,1.23494518]
[1773123086584,0.49494362,2041.4,2041.1,0.01011544]
[1773123086898,0.49494362,2041.4,2041.0,1.23500091]
[1773123087202,0.49494362,2041.4,2041.0,1.23500224]
[1773123088092,0.49494362,2041.4,2041.3,0.0011]
[1773123090023,0.49494362,2041.6,2041.3,0.0011]
[1773123090302,0.49494362,2041.8,2041.3,0.01121532]
[1773123090894,0.49494362,2041.7,2041.3,1.2358927]
[1773123093614,0.49494362,2041.7,2041.3,1.22577738]
[1773123093801,0.49494362,2041.7,2041.3,1.23589259]
[1773123094004,0.49494362,2041.7,2041.4,0.01011518]
[1773123094193,1.71936732,2041.8,2041.4,0.01011518]
[1773123094591,0.49494362,2041.7,2041.4,0.01011518]
[1773123094911,0.49494362,2041.8,2041.5,0.01011518]
[1773123096808,0.49494362,2041.8,2041.5,1.23470254]
[1773123098310,0.001,2042.0,2041.5,2.18528982]
[1773123100387,0.001,2041.6,2041.5,2.18528982]
[1773123100612,0.001,2042.0,2041.5,2.18528982]
[1773123102993,0.001,2042.0,2041.7,0.96070246]
[1773123103922,0.001,2042.0,2041.8,1.22440983]
[1773123108031,0.001,2042.0,2041.6,4.89809672]
[1773123110442,0.50100115,2042.0,2041.6,4.89809672]
[1773123111736,0.50100115,2042.0,2041.6,5.85776511]
[1773123112167,0.001,2042.0,2041.6,5.85776511]
[1773123112441,0.001,2042.3,2041.8,0.96076839]
[1773123114643,0.001,2042.3,2041.9,1.22434987]
[1773123115049,0.50100115,2042.3,2041.9,1.22434987]
[1773123121545,0.50000115,2042.2,2041.8,1.22547065]
[1773123122843,0.50000115,2042.2,2041.7,4.89763933]
[1773123125751,0.50000115,2042.2,2041.8,0.0011]
[1773123126251,0.001,2042.0,2041.8,0.0011]
[1773123128133,0.50100115,2042.0,2041.8,0.0011]
[1773123129438,0.001,2042.0,2041.8,0.0011]
[1773123129851,0.50000115,2042.2,2041.8,0.0011]
[1773123130153,0.50100115,2042.3,2041.8,0.96076839]
[1773123130658,0.50100115,2042.3,2041.9,1.22434987]
[1773123131338,0.50000115,2042.2,2041.8,1.22545462]
[1773123132966,0.001,2042.3,2041.8,0.96076839]
[1773123133667,0.50100115,2042.3,2041.8,0.96076839]
[1773123134673,0.48093796,2042.5,2042.1,0.49693288]
[1773123135190,0.48093796,2042.5,2042.1,1.72115299]
[1773123136370,0.48093796,2042.4,2042.0,1.72118688]
[1773123138477,0.001,2042.3,2042.0,1.72118688]
[1773123143181,0.48193796,2042.3,2042.0,1.72118688]
[1773123151888,0.48193796,2042.3,2041.9,0.0011]
[1773123152088,0.48193796,2042.3,2042.2,0.0011]
[1773123153391,0.48193796,2042.3,2042.0,0.0011]
[1773123153392,0.48093796,2042.2,2042.0,0.0011]
[1773123153888,0.001,2042.3,2042.0,0.0011]
[1773123154087,0.46140701,2042.3,2042.0,0.0011]
[1773123158400,0.001,2042.3,2042.0,0.49720386]
[1773123158700,0.46140701,2042.3,2042.0,0.49720386]
[1773123159607,0.46040701,2042.2,2042.0,0.0011]
[1773123166508,0.001,2042.1,2042.0,0.0011]
[1773123167007,0.46140701,2042.1,2042.0,0.0011]
[1773123167799,0.001,2042.1,2042.0,0.0011]
[1773123168711,0.46140701,2042.1,2042.0,0.0011]
[1773123169409,0.46040701,2042.0,2041.9,0.0011]
[1773123170080,0.46040701,2042.0,2041.7,0.0011]
[1773123170311,0.45889913,2041.8,2041.5,0.0011]
[1773123171390,0.45889913,2041.7,2041.5,0.0011]
[1773123171587,0.45889913,2041.7,2041.4,0.0011]
[1773123171588,0.45889913,2041.7,2041.4,0.49798303]
[1773123172003,0.45889913,2041.7,2041.3,0.49908303]
[1773123172198,0.45889913,2041.7,2041.4,0.49798303]
[1773123172814,0.45889913,2041.9,2041.4,0.49798303]
[1773123173517,0.45889913,2041.9,2041.5,0.49798303]
[1773123173687,0.45889913,2041.8,2041.5,0.49798303]
[1773123174708,0.45889913,2041.8,2041.3,0.0011]
[1773123175016,0.45889913,2041.8,2041.4,0.49798303]
[1773123175227,0.45889913,2041.7,2041.3,0.49908303]
[1773123177111,0.45889913,2041.7,2041.3,1.72374577]
[1773123179424,0.45889913,2041.7,2041.5,0.0011]
[1773123181813,0.45889913,2041.8,2041.5,0.49908303]
[1773123182213,0.45989913,2041.9,2041.5,0.49908303]
[1773123183532,1.68425502,2041.9,2041.5,0.49908303]
[1773123184132,1.68425502,2041.9,2041.5,0.0011]
[1773123184133,0.46145023,2041.8,2041.5,0.0011]
[1773123185917,0.46145023,2041.8,2041.5,0.46462989]
[1773123187434,0.46245023,2041.9,2041.5,1.68921573]
[1773123188026,0.46245023,2041.9,2041.6,0.46352989]
[1773123188829,0.46245023,2041.9,2041.5,0.46462989]
[1773123191437,1.22537566,2041.9,2041.6,0.0011]
[1773123191638,0.46145023,2041.8,2041.6,0.0011]
[1773123191833,0.001,2041.7,2041.6,0.0011]
[1773123192417,0.46245023,2041.7,2041.6,0.0011]
[1773123198450,1.68692003,2041.7,2041.6,0.0011]
[1773123198657,0.46245023,2041.7,2041.6,0.0011]
[1773123199159,0.46245023,2041.7,2041.5,0.0011]
[1773123204162,0.46245023,2041.7,2041.6,0.0011]
[1773123211252,0.001,2041.7,2041.6,0.0011]
[1773123211453,0.001,2041.7,2041.6,0.46462989]
[1773123215862,0.001,2041.9,2041.7,0.47059915]
[1773123216072,0.001,2042.1,2041.8,0.47169915]
[1773123218178,0.001,2042.1,2041.8,1.69610019]
[1773123218679,0.001,2042.1,2041.9,0.47059915]
[1773123225398,0.001,2042.1,2042.0,0.47059915]
[1773123225601,0.48530206,2042.6,2042.0,0.47059915]
[1773123226389,1.70924022,2042.6,2042.0,0.47059915]
[1773123226572,0.48430206,2042.5,2042.0,0.47059915]
[1773123227821,0.48430206,2042.4,2041.9,1.22432085]
[1773123228004,0.48430206,2042.4,2041.9,1.69492]
[1773123228167,0.48430206,2042.4,2041.8,0.47169915]
[1773123228373,2.18401429,2042.5,2041.8,0.0011]
[1773123228374,0.001,2041.9,2041.8,0.0011]
[1773123228602,0.001,2041.9,2041.8,1.22550983]
[1773123229614,0.001,2041.9,2041.8,1.69610898]
[1773123230286,0.001,2041.9,2041.8,1.22550983]
[1773123231197,0.001,2041.9,2041.8,0.0011]
[1773123236401,0.46547139,2041.9,2041.8,0.0011]
[1773123236716,0.46447139,2041.8,2041.6,0.0011]
[1773123237508,0.95985272,2041.8,2041.3,0.0011]
[1773123237726,0.46447139,2041.7,2041.3,1.22580771]
[1773123238421,0.46447139,2041.7,2041.3,0.0011]
[1773123238626,0.46447139,2041.6,2041.3,0.0011]
[1773123240609,0.46447139,2041.8,2041.4,0.48974647]
[1773123240897,0.46547139,2041.9,2041.6,0.48974647]
[1773123241318,0.001,2041.9,2041.6,0.48974647]
[1773123241923,0.46547139,2041.9,2041.5,0.0011]
[1773123242934,0.46547139,2041.9,2041.5,1.22568976]
[1773123243305,0.46547139,2041.9,2041.5,1.71543623]
[1773123244710,0.46547139,2041.9,2041.5,1.22568976]
[1773123244914,0.46547139,2041.9,2041.5,0.0011]
[1773123246334,0.46567495,2041.8,2041.5,0.0011]
[1773123248907,0.46567495,2041.7,2041.5,0.0011]
[1773123252745,0.46567495,2041.7,2041.6,0.0011]
[1773123252948,0.46667495,2041.7,2041.6,0.0011]
[1773123260932,0.001,2041.7,2041.6,0.0011]
[1773123262353,0.46667495,2041.7,2041.6,0.0011]
[1773123263557,0.46667495,2041.7,2041.3,0.0011]
[1773123263558,0.46567495,2041.6,2041.3,0.0011]
[1773123264250,0.001,2041.7,2041.4,0.45504226]
[1773123264453,0.48832765,2041.7,2041.4,0.45504226]
[1773123264822,0.48832765,2041.7,2041.3,1.22579088]
[1773123265446,0.48832765,2041.7,2041.6,0.0011]
[1773123265642,1.71279745,2041.7,2041.6,0.0011]
[1773123270663,0.48732765,2041.6,2041.3,0.0011]
[1773123271560,0.48732765,2041.5,2041.3,0.0011]
[1773123272762,1.71285351,2041.7,2041.3,0.45614226]
[1773123272965,1.22552586,2041.7,2041.3,0.45614226]
[1773123273149,0.48732765,2041.6,2041.3,0.45614226]
[1773123274842,0.47793672,2041.5,2041.3,0.0011]
[1773123278069,0.001,2041.4,2041.3,0.0011]
[1773123281544,0.001,2041.4,2041.3,0.47495961]
[1773123281942,0.001,2041.7,2041.3,0.47495961]
[1773123282157,0.47893672,2041.7,2041.3,0.47495961]
[1773123282972,0.001,2041.7,2041.5,0.47385961]
[1773123285382,0.001,2041.7,2041.5,1.69841145]
[1773123286781,0.001,2042.6,2042.1,0.25564894]
[1773123286955,0.47793672,2042.5,2042.1,0.25564894]
[1773123287550,0.001,2042.4,2042.2,0.47385961]
[1773123287888,0.001,2042.6,2042.2,0.47385961]
[1773123287889,0.001,2042.5,2042.2,0.47385961]
[1773123288578,0.47893672,2042.5,2042.2,0.47385961]
[1773123288749,0.47893672,2042.5,2042.1,0.25564894]
[1773123289101,0.47893672,2042.5,2041.3,4.39825198]
[1773123289102,0.47793672,2042.2,2041.7,0.47385961]
[1773123289390,0.47793672,2042.2,2041.8,0.47385961]
[1773123289547,0.47793672,2042.2,2041.8,1.69826686]
[1773123290963,0.47793672,2042.2,2041.9,0.47385961]
[1773123291154,0.001,2042.2,2042.0,0.47385961]
[1773123291555,0.47793672,2042.4,2042.1,1.83122552]
[1773123291762,0.37728896,2042.4,2042.1,1.69808956]
[1773123293484,0.001,2042.6,2042.4,1.22405013]
[1773123293662,0.47793672,2042.9,2042.5,0.47385961]
[1773123293862,0.001,2042.8,2042.5,0.60699557]
[1773123294061,0.001,2042.8,2042.6,0.47385961]
[1773123294271,0.001,2042.8,2042.7,0.58251972]
[1773123294472,0.001,2042.8,2042.7,0.47385961]
[1773123295272,0.001,2042.8,2042.4,2.18390285]
[1773123295467,0.001,2042.8,2042.5,0.58251972]
[1773123295996,0.47793672,2043.2,2042.7,0.47385961]
[1773123297685,0.47793672,2043.2,2042.5,1.72323888]
[1773123297977,0.47793672,2043.2,2042.4,4.89603024]
[1773123298163,0.49132933,2043.0,2042.6,0.49926918]
[1773123301087,0.49132933,2043.0,2042.6,1.72318169]
[1773123302382,0.001,2042.8,2042.6,1.72318169]
[1773123302787,0.49132933,2043.2,2042.8,0.49926918]
[1773123303572,0.49132933,2043.2,2042.7,1.81362942]
[1773123303971,0.49132933,2043.2,2042.8,0.48115689]
[1773123305474,0.47818248,2043.4,2042.7,0.10866011]
[1773123305674,0.47818248,2043.3,2042.7,1.33252904]
[1773123305993,0.47818248,2043.3,2042.7,1.81368593]
[1773123306793,0.47818248,2043.3,2042.7,1.70502582]
[1773123308462,0.47818248,2043.1,2042.5,1.70514709]
[1773123308791,0.47818248,2043.1,2042.6,0.48115689]
[1773123309292,0.47818248,2043.1,2042.7,0.589817]
[1773123309493,0.47818248,2043.1,2042.7,0.48115689]
[1773123310000,0.47818248,2043.1,2042.6,0.10866011]
[1773123310566,0.47818248,2043.0,2042.6,1.81373193]
[1773123310779,0.47818248,2043.0,2042.6,0.589817]
[1773123311064,0.47818248,2042.7,2042.2,0.48115689]
[1773123311273,0.47818248,2042.7,2042.3,0.10866011]
[1773123311590,0.47818248,2042.7,2042.2,1.81398263]
[1773123311998,0.47818248,2042.9,2042.3,0.48115689]
[1773123312369,0.47818248,2042.9,2042.5,0.48115689]
[1773123312999,0.47818248,2042.9,2042.4,1.22405013]
[1773123313195,0.47818248,2042.9,2042.4,1.70520702]
[1773123314176,0.47818248,2042.8,2042.5,0.10866011]
[1773123314605,0.47818248,2042.8,2042.3,1.22406401]
[1773123314904,0.47818248,2042.8,2042.4,0.10966011]
[1773123315428,0.47818248,2042.8,2042.4,1.33370636]
[1773123316108,0.47818248,2042.7,2042.4,0.10966011]
[1773123316270,0.47818248,2042.7,2042.4,1.33370755]
[1773123317300,0.47818248,2042.9,2042.5,0.48115689]
[1773123317518,0.47818248,2042.9,2042.4,1.81486444]
[1773123319185,1.22377071,2042.9,2042.4,1.81486444]
[1773123319392,0.47818248,2042.8,2042.4,1.81486444]
[1773123320124,0.47818248,2042.5,2042.2,0.001]
[1773123321225,0.47818248,2042.4,2042.2,0.001]
[1773123324618,0.47818248,2042.4,2042.0,1.66346599]
[1773123324824,0.47818248,2042.4,2042.0,1.66349938]
[1773123325316,0.95880826,2042.8,2042.1,0.48115689]
[1773123325317,0.47818248,2042.8,2042.1,0.48115689]
[1773123325691,0.48018248,2043.0,2042.3,0.48115689]
[1773123325897,0.48018248,2043.0,2042.5,0.48115689]
[1773123326913,0.002,2043.0,2042.5,0.48115689]
[1773123328525,0.48018248,2043.0,2042.6,1.22393028]
[1773123328829,0.48018248,2043.0,2042.6,1.70608717]
[1773123329026,0.002,2042.8,2042.6,1.70608717]
[1773123329229,0.002,2042.8,2042.6,1.22493028]
[1773123333134,0.002,2042.8,2042.6,0.48215689]
[1773123337232,0.002,2042.8,2042.6,1.70604276]
[1773123337626,0.002,2043.0,2042.7,0.45515338]
[1773123338832,0.4754888,2043.0,2042.7,0.45515338]
[1773123340036,0.4754888,2043.0,2042.6,0.45615338]
[1773123342037,0.4754888,2043.0,2042.7,1.22387036]
[1773123342213,0.002,2043.0,2042.8,0.45515338]
[1773123342413,0.4734888,2043.1,2042.8,0.45515338]
[1773123342614,0.002,2043.2,2042.8,0.45515338]
[1773123343330,0.4754888,2043.2,2042.8,0.45515338]
[1773123343528,0.002,2043.2,2042.9,0.45515338]
[1773123344241,0.002,2043.3,2043.0,1.67884403]
[1773123344844,0.002,2043.5,2043.1,0.45515338]
[1773123345012,8.39987921,2044.0,2043.4,1.41396164]
[1773123345013,0.4754888,2043.8,2043.4,1.41396164]
[1773123345210,0.4754888,2043.8,2043.5,0.45515338]
[1773123346516,0.4754888,2043.8,2043.5,1.67850751]
[1773123347220,0.4754888,2043.8,2043.5,1.22335413]
[1773123347544,0.002,2043.8,2043.5,1.67850751]
[1773123347723,0.4754888,2043.8,2043.5,0.45515338]
[1773123348048,0.4734888,2043.7,2043.1,1.22363075]
[1773123348253,0.4734888,2043.3,2042.6,0.001]